[Event "Titled Tuesday Blitz January 17 Early 2023"]
[White "Tarnowska, Aleksandra"]
[Black "Ruiz Castillo, Joshua Daniel"]
[WhiteFideId "1180967"]
[BlackFideId "4400704"]
[WhiteElo "1835"]
[BlackElo "2459"]
[Result "1/2-1/2"]
[Round "08"]
[TimeControl "180+2"]
[Date "2023.01.17"]
[WhiteClock "0:00:10"]
[BlackClock "0:02:03"]

1. e4 {[%clk 0:02:56]}  c5 {[%clk 0:02:47]} 2. Nf3 {[%clk 0:02:55]}  d6 {[%clk 0:02:48]} 3. Bb5+ {[%clk 0:02:56]}  Nd7 {[%clk 0:02:47]} 4. O-O {[%clk 0:02:55]}  a6 {[%clk 0:02:48]} 5. Bxd7+ {[%clk 0:02:52]}  Bxd7 {[%clk 0:02:49]} 6. d4 {[%clk 0:02:51]}  cxd4 {[%clk 0:02:49]} 7. Nxd4 {[%clk 0:02:51]}  e5 {[%clk 0:02:48]} 8. Nb3 {[%clk 0:02:45]}  h6 {[%clk 0:02:48]} 9. Nc3 {[%clk 0:02:44]}  Nf6 {[%clk 0:02:48]} 10. Re1 {[%clk 0:02:41]}  Rc8 {[%clk 0:02:48]} 11. Nd5 {[%clk 0:02:24]}  Nxd5 {[%clk 0:02:46]} 12. exd5 {[%clk 0:02:09]}  Be7 {[%clk 0:02:46]} 13. c3 {[%clk 0:02:05]}  O-O {[%clk 0:02:46]} 14. Be3 {[%clk 0:01:45]}  Bg5 {[%clk 0:02:42]} 15. Qh5 {[%clk 0:01:32]}  f5 {[%clk 0:02:36]} 16. Bxg5 {[%clk 0:01:17]}  hxg5 {[%clk 0:02:35]} 17. Qg6 {[%clk 0:01:08]}  Qf6 {[%clk 0:02:32]} 18. Qxf6 {[%clk 0:01:03]}  gxf6 {[%clk 0:02:32]} 19. Na5 {[%clk 0:01:02]}  b6 {[%clk 0:02:31]} 20. Nb7 {[%clk 0:00:59]}  Rc7 {[%clk 0:02:20]} 21. Nxd6 {[%clk 0:00:56]}  Rd8 {[%clk 0:02:20]} 22. g4 {[%clk 0:00:52]}  fxg4 {[%clk 0:02:19]} 23. Ne4 {[%clk 0:00:52]}  Kg7 {[%clk 0:02:20]} 24. Rad1 {[%clk 0:00:41]}  Kg6 {[%clk 0:02:19]} 25. Rd2 {[%clk 0:00:26]}  f5 {[%clk 0:02:15]} 26. Ng3 {[%clk 0:00:24]}  e4 {[%clk 0:02:14]} 27. Rd4 {[%clk 0:00:22]}  Bc8 {[%clk 0:02:11]} 28. d6 {[%clk 0:00:20]}  Rc5 {[%clk 0:02:09]} 29. Red1 {[%clk 0:00:19]}  Rd7 {[%clk 0:02:09]} 30. Rd5 {[%clk 0:00:17]}  Bb7 {[%clk 0:02:09]} 31. Rxc5 {[%clk 0:00:13]}  bxc5 {[%clk 0:02:10]} 32. b4 {[%clk 0:00:08]}  cxb4 {[%clk 0:02:10]} 33. cxb4 {[%clk 0:00:09]}  f4 {[%clk 0:02:09]} 34. Ne2 {[%clk 0:00:08]}  Kf5 {[%clk 0:02:10]} 35. Nc3 {[%clk 0:00:05]}  Ke5 {[%clk 0:02:10]} 36. Kf1 {[%clk 0:00:03]}  Rxd6 {[%clk 0:02:10]} 37. Rxd6 {[%clk 0:00:03]}  Kxd6 {[%clk 0:02:10]} 38. Ke2 {[%clk 0:00:03]}  Ke5 {[%clk 0:02:11]} 39. Kd2 {[%clk 0:00:03]}  Bd5 {[%clk 0:02:09]} 40. a4 {[%clk 0:00:03]}  Bc4 {[%clk 0:02:10]} 41. b5 {[%clk 0:00:04]}  axb5 {[%clk 0:02:10]} 42. axb5 {[%clk 0:00:05]}  Kd4 {[%clk 0:02:11]} 43. b6 {[%clk 0:00:05]}  Ba6 {[%clk 0:02:11]} 44. Na4 {[%clk 0:00:04]}  Bb7 {[%clk 0:02:09]} 45. Nc3 {[%clk 0:00:04]}  Kc5 {[%clk 0:02:10]} 46. Nd1 {[%clk 0:00:03]}  Kxb6 {[%clk 0:02:10]} 47. Kc3 {[%clk 0:00:03]}  Kc5 {[%clk 0:02:11]} 48. Nb2 {[%clk 0:00:03]}  Ba6 {[%clk 0:02:09]} 49. Na4+ {[%clk 0:00:03]}  Kd5 {[%clk 0:02:09]} 50. Nb6+ {[%clk 0:00:04]}  Ke5 {[%clk 0:02:09]} 51. Nd7+ {[%clk 0:00:04]}  Kf5 {[%clk 0:02:09]} 52. Nc5 {[%clk 0:00:05]}  Bf1 {[%clk 0:02:06]} 53. Kd4 {[%clk 0:00:05]}  Bg2 {[%clk 0:02:06]} 54. Nb3 {[%clk 0:00:04]}  Bf3 {[%clk 0:02:06]} 55. Nd2 {[%clk 0:00:04]}  e3 {[%clk 0:02:02]} 56. fxe3 {[%clk 0:00:04]}  Ba8 {[%clk 0:02:02]} 57. e4+ {[%clk 0:00:03]}  Ke6 {[%clk 0:02:00]} 58. Kd3 {[%clk 0:00:03]}  Bc6 {[%clk 0:01:59]} 59. Nc4 {[%clk 0:00:03]}  Bb5 {[%clk 0:01:58]} 60. Kd4 {[%clk 0:00:02]}  Bxc4 {[%clk 0:01:59]} 61. Kxc4 {[%clk 0:00:03]}  Ke5 {[%clk 0:02:00]} 62. Kd3 {[%clk 0:00:03]}  g3 {[%clk 0:01:58]} 63. hxg3 {[%clk 0:00:03]}  fxg3 {[%clk 0:01:59]} 64. Ke3 {[%clk 0:00:04]}  g4 {[%clk 0:01:59]} 65. Ke2 {[%clk 0:00:03]}  Kxe4 {[%clk 0:02:00]} 66. Kf1 {[%clk 0:00:04]}  Kf3 {[%clk 0:01:59]} 67. Kg1 {[%clk 0:00:04]}  Kf4 {[%clk 0:01:50]} 68. Kh1 {[%clk 0:00:04]}  Kg5 {[%clk 0:01:50]} 69. Kg1 {[%clk 0:00:04]}  Kh5 {[%clk 0:01:50]} 70. Kh1 {[%clk 0:00:04]}  Kh4 {[%clk 0:01:51]} 71. Kg2 {[%clk 0:00:04]}  Kg5 {[%clk 0:01:51]} 72. Kxg3 {[%clk 0:00:05]}  Kf5 {[%clk 0:01:52]} 73. Kg2 {[%clk 0:00:05]}  Kf4 {[%clk 0:01:53]} 74. Kf2 {[%clk 0:00:06]}  g3+ {[%clk 0:01:53]} 75. Kg2 {[%clk 0:00:06]}  Kg4 {[%clk 0:01:54]} 76. Kg1 {[%clk 0:00:07]}  Kh4 {[%clk 0:01:54]} 77. Kg2 {[%clk 0:00:07]}  Kg4 {[%clk 0:01:55]} 78. Kg1 {[%clk 0:00:07]}  Kg5 {[%clk 0:01:56]} 79. Kg2 {[%clk 0:00:07]}  Kf4 {[%clk 0:01:57]} 80. Kg1 {[%clk 0:00:08]}  Kf3 {[%clk 0:01:58]} 81. Kf1 {[%clk 0:00:08]}  Ke3 {[%clk 0:01:58]} 82. Ke1 {[%clk 0:00:07]}  Kf4 {[%clk 0:01:59]} 83. Kf1 {[%clk 0:00:08]}  Ke3 {[%clk 0:02:00]} 84. Kg2 {[%clk 0:00:08]}  Kf4 {[%clk 0:02:00]} 85. Kg1 {[%clk 0:00:09]}  Kg4 {[%clk 0:02:01]} 86. Kg2 {[%clk 0:00:09]}  Kh4 {[%clk 0:02:01]} 87. Kg1 {[%clk 0:00:09]}  Kh3 {[%clk 0:02:02]} 88. Kh1 {[%clk 0:00:10]}  Kg4 {[%clk 0:02:02]} 89. Kg2 {[%clk 0:00:10]}  Kf4 {[%clk 0:02:03]} 1/2-1/2


[Site "https://www.chess.com"]

[Event "Titled Tuesday Blitz January 17 Early 2023"]
[White "Atakhan, Abtin"]
[Black "Melikhov, Evgeny V."]
[WhiteFideId "22502203"]
[BlackFideId "4122046"]
[WhiteElo "2422"]
[BlackElo "2269"]
[Result "1-0"]
[Round "08"]
[TimeControl "180+2"]
[Date "2023.01.17"]
[WhiteClock "0:01:27"]
[BlackClock "0:00:05"]

1. d4 {[%clk 0:03:00]}  Nf6 {[%clk 0:02:59]} 2. c4 {[%clk 0:03:01]}  e6 {[%clk 0:02:59]} 3. Nf3 {[%clk 0:03:02]}  d5 {[%clk 0:02:59]} 4. Nc3 {[%clk 0:03:03]}  Bb4 {[%clk 0:02:59]} 5. Bg5 {[%clk 0:03:02]}  h6 {[%clk 0:02:58]} 6. Bxf6 {[%clk 0:03:02]}  Qxf6 {[%clk 0:02:58]} 7. e3 {[%clk 0:03:02]}  O-O {[%clk 0:02:58]} 8. Rc1 {[%clk 0:03:03]}  c5 {[%clk 0:02:51]} 9. cxd5 {[%clk 0:03:02]}  exd5 {[%clk 0:02:51]} 10. a3 {[%clk 0:03:02]}  Bxc3+ {[%clk 0:02:50]} 11. Rxc3 {[%clk 0:03:03]}  c4 {[%clk 0:02:51]} 12. Be2 {[%clk 0:03:02]}  Bf5 {[%clk 0:02:47]} 13. Ne5 {[%clk 0:03:02]}  Nd7 {[%clk 0:02:36]} 14. Bf3 {[%clk 0:02:59]}  Nxe5 {[%clk 0:02:28]} 15. dxe5 {[%clk 0:03:00]}  Qxe5 {[%clk 0:02:29]} 16. Qxd5 {[%clk 0:03:00]}  Qxd5 {[%clk 0:02:28]} 17. Bxd5 {[%clk 0:03:01]}  Rac8 {[%clk 0:02:00]} 18. Bxc4 {[%clk 0:02:57]}  a6 {[%clk 0:01:48]} 19. Ke2 {[%clk 0:02:54]}  b5 {[%clk 0:01:47]} 20. Bd3 {[%clk 0:02:47]}  Rxc3 {[%clk 0:01:45]} 21. bxc3 {[%clk 0:02:48]}  Be6 {[%clk 0:01:42]} 22. Ra1 {[%clk 0:02:45]}  Rc8 {[%clk 0:01:40]} 23. Kd2 {[%clk 0:02:45]}  Bb3 {[%clk 0:01:29]} 24. Rb1 {[%clk 0:02:42]}  Bc4 {[%clk 0:01:29]} 25. Bxc4 {[%clk 0:02:40]}  Rxc4 {[%clk 0:01:28]} 26. Rb4 {[%clk 0:02:40]}  Rc6 {[%clk 0:01:26]} 27. Kd3 {[%clk 0:02:33]}  f5 {[%clk 0:01:21]} 28. a4 {[%clk 0:02:23]}  bxa4 {[%clk 0:01:20]} 29. Rxa4 {[%clk 0:02:24]}  Kf7 {[%clk 0:01:19]} 30. Ra5 {[%clk 0:02:20]}  Ke6 {[%clk 0:01:17]} 31. c4 {[%clk 0:02:19]}  g5 {[%clk 0:01:12]} 32. f4 {[%clk 0:02:17]}  g4 {[%clk 0:01:04]} 33. e4 {[%clk 0:02:01]}  fxe4+ {[%clk 0:01:01]} 34. Kd4 {[%clk 0:01:59]}  e3 {[%clk 0:00:44]} 35. Re5+ {[%clk 0:01:58]}  Kf6 {[%clk 0:00:44]} 36. Rxe3 {[%clk 0:01:58]}  Rd6+ {[%clk 0:00:25]} 37. Kc3 {[%clk 0:01:58]}  Rd1 {[%clk 0:00:16]} 38. g3 {[%clk 0:01:56]}  a5 {[%clk 0:00:15]} 39. Re2 {[%clk 0:01:51]}  Rf1 {[%clk 0:00:10]} 40. Kd4 {[%clk 0:01:49]}  h5 {[%clk 0:00:07]} 41. Kd5 {[%clk 0:01:45]}  h4 {[%clk 0:00:06]} 42. c5 {[%clk 0:01:34]}  hxg3 {[%clk 0:00:06]} 43. hxg3 {[%clk 0:01:35]}  Rf3 {[%clk 0:00:06]} 44. c6 {[%clk 0:01:31]}  Rxg3 {[%clk 0:00:05]} 45. c7 {[%clk 0:01:25]}  Rc3 {[%clk 0:00:05]} 46. Kd6 {[%clk 0:01:26]}  Kf5 {[%clk 0:00:05]} 47. Re5+ {[%clk 0:01:26]}  Kxf4 {[%clk 0:00:05]} 48. Rc5 {[%clk 0:01:27]} 1-0


[Site "https://www.chess.com"]

[Event "Titled Tuesday Blitz January 17 Early 2023"]
[White "Petrova, Irina"]
[Black "Estrada Nieto, Julian"]
[WhiteFideId "14124122"]
[BlackFideId "5101018"]
[WhiteElo "2108"]
[BlackElo "2215"]
[Result "1-0"]
[Round "08"]
[TimeControl "180+2"]
[Date "2023.01.17"]
[WhiteClock "0:00:09"]
[BlackClock "0:00:09"]

1. e4 {[%clk 0:03:00]}  e5 {[%clk 0:02:59]} 2. Nf3 {[%clk 0:03:01]}  Nc6 {[%clk 0:02:59]} 3. Bb5 {[%clk 0:03:01]}  a6 {[%clk 0:02:59]} 4. Ba4 {[%clk 0:03:01]}  Nf6 {[%clk 0:02:59]} 5. Bxc6 {[%clk 0:03:01]}  dxc6 {[%clk 0:02:59]} 6. d3 {[%clk 0:03:02]}  Nd7 {[%clk 0:02:57]} 7. Nbd2 {[%clk 0:03:01]}  f6 {[%clk 0:02:55]} 8. Nc4 {[%clk 0:02:59]}  Be7 {[%clk 0:02:55]} 9. Ne3 {[%clk 0:02:58]}  Nc5 {[%clk 0:02:53]} 10. O-O {[%clk 0:02:56]}  O-O {[%clk 0:02:53]} 11. Nh4 {[%clk 0:02:56]}  g6 {[%clk 0:02:51]} 12. Ng4 {[%clk 0:02:26]}  f5 {[%clk 0:02:15]} 13. Nh6+ {[%clk 0:02:21]}  Kg7 {[%clk 0:02:15]} 14. N4xf5+ {[%clk 0:01:39]}  gxf5 {[%clk 0:02:14]} 15. Nxf5+ {[%clk 0:01:31]}  Bxf5 {[%clk 0:02:14]} 16. exf5 {[%clk 0:01:32]}  Kh8 {[%clk 0:01:59]} 17. g4 {[%clk 0:01:28]}  Rg8 {[%clk 0:01:54]} 18. f3 {[%clk 0:01:27]}  Bg5 {[%clk 0:01:48]} 19. Qe2 {[%clk 0:01:22]}  Qd4+ {[%clk 0:01:37]} 20. Kh1 {[%clk 0:01:19]}  Bxc1 {[%clk 0:01:36]} 21. Raxc1 {[%clk 0:01:17]}  Rae8 {[%clk 0:01:33]} 22. b3 {[%clk 0:01:13]}  Qd5 {[%clk 0:01:29]} 23. Qg2 {[%clk 0:01:03]}  Nd7 {[%clk 0:01:18]} 24. Rce1 {[%clk 0:00:58]}  Nf6 {[%clk 0:01:13]} 25. h3 {[%clk 0:00:51]}  Nh5 {[%clk 0:01:10]} 26. Kh2 {[%clk 0:00:49]}  Nf4 {[%clk 0:01:10]} 27. Qd2 {[%clk 0:00:44]}  Qd8 {[%clk 0:01:02]} 28. Rg1 {[%clk 0:00:35]}  Qh4 {[%clk 0:00:59]} 29. Rg3 {[%clk 0:00:35]}  h5 {[%clk 0:00:44]} 30. Qc3 {[%clk 0:00:19]}  Qf6 {[%clk 0:00:40]} 31. Re4 {[%clk 0:00:19]}  hxg4 {[%clk 0:00:37]} 32. Rxf4 {[%clk 0:00:18]}  gxh3 {[%clk 0:00:20]} 33. Rxh3+ {[%clk 0:00:17]}  Kg7 {[%clk 0:00:19]} 34. Rg4+ {[%clk 0:00:17]}  Kf8 {[%clk 0:00:17]} 35. Qc5+ {[%clk 0:00:16]}  Qd6 {[%clk 0:00:14]} 36. Qxd6+ {[%clk 0:00:13]}  cxd6 {[%clk 0:00:14]} 37. Rh7 {[%clk 0:00:12]}  Rxg4 {[%clk 0:00:08]} 38. fxg4 {[%clk 0:00:13]}  Re7 {[%clk 0:00:08]} 39. Rxe7 {[%clk 0:00:10]}  Kxe7 {[%clk 0:00:08]} 40. Kg3 {[%clk 0:00:10]}  Kf6 {[%clk 0:00:09]} 41. Kf3 {[%clk 0:00:10]}  d5 {[%clk 0:00:09]} 42. Ke3 {[%clk 0:00:10]}  Kg5 {[%clk 0:00:09]} 43. c4 {[%clk 0:00:08]}  b5 {[%clk 0:00:08]} 44. cxb5 {[%clk 0:00:06]}  cxb5 {[%clk 0:00:07]} 45. Kf3 {[%clk 0:00:05]}  b4 {[%clk 0:00:06]} 46. Kg3 {[%clk 0:00:05]}  a5 {[%clk 0:00:05]} 47. Kh3 {[%clk 0:00:04]}  e4 {[%clk 0:00:04]} 48. dxe4 {[%clk 0:00:03]}  d4 {[%clk 0:00:04]} 49. Kg3 {[%clk 0:00:03]}  d3 {[%clk 0:00:04]} 50. Kf2 {[%clk 0:00:03]}  Kf4 {[%clk 0:00:04]} 51. f6 {[%clk 0:00:02]}  Kxe4 {[%clk 0:00:04]} 52. f7 {[%clk 0:00:02]}  d2 {[%clk 0:00:04]} 53. Ke2 {[%clk 0:00:02]}  d1=Q+ {[%clk 0:00:04]} 54. Kxd1 {[%clk 0:00:03]}  Ke5 {[%clk 0:00:05]} 55. f8=Q {[%clk 0:00:04]}  Kd4 {[%clk 0:00:05]} 56. Qa8 {[%clk 0:00:05]}  Kc3 {[%clk 0:00:05]} 57. Qxa5 {[%clk 0:00:06]}  Kb2 {[%clk 0:00:06]} 58. Qxb4 {[%clk 0:00:06]}  Kxa2 {[%clk 0:00:06]} 59. Qb7 {[%clk 0:00:06]}  Kb2 {[%clk 0:00:06]} 60. g5 {[%clk 0:00:07]}  Kc3 {[%clk 0:00:06]} 61. g6 {[%clk 0:00:08]}  Kb2 {[%clk 0:00:07]} 62. g7 {[%clk 0:00:09]}  Kc3 {[%clk 0:00:08]} 63. g8=Q {[%clk 0:00:09]}  Kb2 {[%clk 0:00:09]} 64. Qgg7+ {[%clk 0:00:09]} 1-0


[Site "https://www.chess.com"]

[Event "Titled Tuesday Blitz January 17 Early 2023"]
[White "Bas Mas, Jose Joaquin"]
[Black "Kostenko, Petr"]
[WhiteFideId "22219064"]
[BlackFideId "13700669"]
[WhiteElo "2197"]
[BlackElo "2371"]
[Result "1-0"]
[Round "08"]
[TimeControl "180+2"]
[Date "2023.01.17"]
[WhiteClock "0:01:24"]
[BlackClock "0:00:13"]

1. e4 {[%clk 0:03:00]}  e5 {[%clk 0:02:46]} 2. Nf3 {[%clk 0:03:00]}  Nc6 {[%clk 0:02:47]} 3. Bc4 {[%clk 0:03:00]}  Nf6 {[%clk 0:02:46]} 4. d3 {[%clk 0:03:01]}  h6 {[%clk 0:02:46]} 5. O-O {[%clk 0:03:00]}  d6 {[%clk 0:02:46]} 6. c3 {[%clk 0:02:57]}  g5 {[%clk 0:02:46]} 7. Re1 {[%clk 0:02:40]}  g4 {[%clk 0:02:44]} 8. Nfd2 {[%clk 0:02:41]}  h5 {[%clk 0:02:44]} 9. Nf1 {[%clk 0:02:41]}  h4 {[%clk 0:02:45]} 10. d4 {[%clk 0:02:37]}  Qe7 {[%clk 0:02:10]} 11. b4 {[%clk 0:02:23]}  Bd7 {[%clk 0:01:16]} 12. a4 {[%clk 0:02:23]}  O-O-O {[%clk 0:00:48]} 13. d5 {[%clk 0:02:22]}  Nb8 {[%clk 0:00:47]} 14. a5 {[%clk 0:02:22]}  Bh6 {[%clk 0:00:43]} 15. b5 {[%clk 0:02:20]}  Rdg8 {[%clk 0:00:33]} 16. b6 {[%clk 0:02:13]}  cxb6 {[%clk 0:00:32]} 17. axb6 {[%clk 0:02:13]}  a6 {[%clk 0:00:32]} 18. Ra2 {[%clk 0:02:00]}  Qd8 {[%clk 0:00:19]} 19. Nbd2 {[%clk 0:01:45]}  Qxb6 {[%clk 0:00:18]} 20. Rb2 {[%clk 0:01:43]}  Qc7 {[%clk 0:00:19]} 21. Qe2 {[%clk 0:01:40]}  Nh5 {[%clk 0:00:18]} 22. Nb3 {[%clk 0:01:36]}  Nf4 {[%clk 0:00:17]} 23. Bxf4 {[%clk 0:01:36]}  exf4 {[%clk 0:00:18]} 24. e5 {[%clk 0:01:32]}  f3 {[%clk 0:00:17]} 25. Qe4 {[%clk 0:01:26]}  fxg2 {[%clk 0:00:17]} 26. Ne3 {[%clk 0:01:27]}  dxe5 {[%clk 0:00:16]} 27. d6 {[%clk 0:01:26]}  Qc6 {[%clk 0:00:15]} 28. Bd5 {[%clk 0:01:26]}  Qxd6 {[%clk 0:00:16]} 29. Bxb7+ {[%clk 0:01:26]}  Kd8 {[%clk 0:00:16]} 30. Rd1 {[%clk 0:01:26]}  Qc7 {[%clk 0:00:15]} 31. Nc5 {[%clk 0:01:26]}  Ke7 {[%clk 0:00:14]} 32. Nd5+ {[%clk 0:01:25]}  Kf8 {[%clk 0:00:15]} 33. Nxc7 {[%clk 0:01:26]}  f5 {[%clk 0:00:15]} 34. Qxe5 {[%clk 0:01:26]}  Bg5 {[%clk 0:00:14]} 35. Nxd7+ {[%clk 0:01:23]}  Nxd7 {[%clk 0:00:13]} 36. Rxd7 {[%clk 0:01:24]} 1-0


[Site "https://www.chess.com"]

[Event "Titled Tuesday Blitz January 17 Early 2023"]
[White "Qashashvili, Alexandre"]
[Black "Nikulina, Alena"]
[WhiteFideId "13600842"]
[BlackFideId "4172051"]
[WhiteElo "2505"]
[BlackElo "1857"]
[Result "1-0"]
[Round "08"]
[TimeControl "180+2"]
[Date "2023.01.17"]
[WhiteClock "0:01:45"]
[BlackClock "0:00:26"]

1. e4 {[%clk 0:03:00]}  c5 {[%clk 0:02:57]} 2. Nc3 {[%clk 0:02:51]}  Nc6 {[%clk 0:02:37]} 3. Nf3 {[%clk 0:02:52]}  e6 {[%clk 0:02:37]} 4. d3 {[%clk 0:02:47]}  Nf6 {[%clk 0:02:35]} 5. Be2 {[%clk 0:02:47]}  d5 {[%clk 0:02:35]} 6. exd5 {[%clk 0:02:47]}  exd5 {[%clk 0:02:35]} 7. d4 {[%clk 0:02:48]}  Bd6 {[%clk 0:02:29]} 8. h3 {[%clk 0:02:48]}  O-O {[%clk 0:02:29]} 9. O-O {[%clk 0:02:48]}  h6 {[%clk 0:02:27]} 10. Be3 {[%clk 0:02:47]}  cxd4 {[%clk 0:02:25]} 11. Nxd4 {[%clk 0:02:46]}  Ne5 {[%clk 0:02:24]} 12. Nf3 {[%clk 0:02:42]}  Be6 {[%clk 0:02:14]} 13. Bd4 {[%clk 0:02:35]}  Nc4 {[%clk 0:02:04]} 14. b3 {[%clk 0:02:32]}  Nb6 {[%clk 0:02:00]} 15. Bd3 {[%clk 0:02:26]}  Rc8 {[%clk 0:01:52]} 16. Ne2 {[%clk 0:02:22]}  Ne4 {[%clk 0:01:36]} 17. Be5 {[%clk 0:02:20]}  Qc7 {[%clk 0:01:31]} 18. Bxd6 {[%clk 0:02:19]}  Qxd6 {[%clk 0:01:21]} 19. Bxe4 {[%clk 0:02:17]}  Rfd8 {[%clk 0:01:08]} 20. Bd3 {[%clk 0:02:17]}  g5 {[%clk 0:00:55]} 21. Ned4 {[%clk 0:02:13]}  Qf4 {[%clk 0:00:52]} 22. Nxe6 {[%clk 0:02:08]}  fxe6 {[%clk 0:00:52]} 23. Qe2 {[%clk 0:02:08]}  Re8 {[%clk 0:00:51]} 24. Qe5 {[%clk 0:02:08]}  Qf7 {[%clk 0:00:50]} 25. Rae1 {[%clk 0:02:03]}  Nd7 {[%clk 0:00:50]} 26. Qg3 {[%clk 0:02:00]}  Kg7 {[%clk 0:00:32]} 27. h4 {[%clk 0:01:57]}  Rg8 {[%clk 0:00:29]} 28. hxg5 {[%clk 0:01:55]}  Kf8 {[%clk 0:00:28]} 29. g6 {[%clk 0:01:50]}  Qf6 {[%clk 0:00:27]} 30. Qh3 {[%clk 0:01:47]}  Kg7 {[%clk 0:00:26]} 31. Rxe6 {[%clk 0:01:45]} 1-0


[Site "https://www.chess.com"]

[Event "Titled Tuesday Blitz January 17 Early 2023"]
[White "Miszler, Levente"]
[Black "Torres Dominguez, David"]
[WhiteFideId "763276"]
[BlackFideId "2220857"]
[WhiteElo "2271"]
[BlackElo "1994"]
[Result "1-0"]
[Round "08"]
[TimeControl "180+2"]
[Date "2023.01.17"]
[WhiteClock "0:00:40"]
[BlackClock "0:00:02"]

1. Nf3 {[%clk 0:03:00]}  d5 {[%clk 0:02:23]} 2. c4 {[%clk 0:02:32]}  e6 {[%clk 0:02:22]} 3. g3 {[%clk 0:02:31]}  Nf6 {[%clk 0:02:21]} 4. Bg2 {[%clk 0:02:32]}  Be7 {[%clk 0:02:19]} 5. O-O {[%clk 0:02:33]}  O-O {[%clk 0:02:19]} 6. b3 {[%clk 0:02:32]}  c6 {[%clk 0:02:17]} 7. Bb2 {[%clk 0:02:31]}  Nbd7 {[%clk 0:02:12]} 8. d4 {[%clk 0:02:26]}  a5 {[%clk 0:01:56]} 9. Nbd2 {[%clk 0:02:24]}  a4 {[%clk 0:01:53]} 10. Qc2 {[%clk 0:02:23]}  b6 {[%clk 0:01:49]} 11. e4 {[%clk 0:02:21]}  Nxe4 {[%clk 0:01:31]} 12. Nxe4 {[%clk 0:02:22]}  dxe4 {[%clk 0:01:31]} 13. Qxe4 {[%clk 0:02:23]}  Bb7 {[%clk 0:01:29]} 14. Ne5 {[%clk 0:02:20]}  Nxe5 {[%clk 0:01:22]} 15. dxe5 {[%clk 0:02:20]}  Qc7 {[%clk 0:01:18]} 16. Rfd1 {[%clk 0:02:19]}  Ra7 {[%clk 0:01:11]} 17. Bc3 {[%clk 0:02:12]}  c5 {[%clk 0:01:11]} 18. Qe2 {[%clk 0:02:11]}  Bxg2 {[%clk 0:01:03]} 19. Kxg2 {[%clk 0:02:12]}  Rb8 {[%clk 0:01:00]} 20. Rab1 {[%clk 0:02:07]}  b5 {[%clk 0:00:54]} 21. cxb5 {[%clk 0:02:03]}  axb3 {[%clk 0:00:50]} 22. Rxb3 {[%clk 0:02:03]}  c4 {[%clk 0:00:39]} 23. Rb2 {[%clk 0:02:03]}  Rxb5 {[%clk 0:00:36]} 24. Rbd2 {[%clk 0:01:48]}  Ra3 {[%clk 0:00:25]} 25. Qe3 {[%clk 0:01:40]}  Bc5 {[%clk 0:00:22]} 26. Rd8+ {[%clk 0:01:23]}  Bf8 {[%clk 0:00:22]} 27. Bb4 {[%clk 0:01:20]}  Qb7+ {[%clk 0:00:20]} 28. Kg1 {[%clk 0:01:20]}  Rxb4 {[%clk 0:00:16]} 29. Qxa3 {[%clk 0:01:20]}  c3 {[%clk 0:00:13]} 30. Ra8 {[%clk 0:01:08]}  c2 {[%clk 0:00:12]} 31. Rc1 {[%clk 0:01:01]}  Qxa8 {[%clk 0:00:06]} 32. Qxa8 {[%clk 0:01:00]}  Rb1 {[%clk 0:00:06]} 33. Kg2 {[%clk 0:00:55]}  Rxc1 {[%clk 0:00:06]} 34. Qc8 {[%clk 0:00:55]}  g6 {[%clk 0:00:05]} 35. Qc3 {[%clk 0:00:47]}  Kg7 {[%clk 0:00:04]} 36. Qb2 {[%clk 0:00:45]}  Rd1 {[%clk 0:00:02]} 37. Qxc2 {[%clk 0:00:45]}  Rd8 {[%clk 0:00:03]} 38. a4 {[%clk 0:00:43]}  Ra8 {[%clk 0:00:03]} 39. Qc4 {[%clk 0:00:41]}  Kg8 {[%clk 0:00:02]} 40. Qb5 {[%clk 0:00:40]} 1-0


[Site "https://www.chess.com"]

[Event "Titled Tuesday Blitz January 17 Early 2023"]
[White "Sailer, Mike"]
[Black "Gutkin, Ilya"]
[WhiteFideId "2012901"]
[BlackFideId "16203470"]
[WhiteElo "2109"]
[BlackElo "2273"]
[Result "0-1"]
[Round "08"]
[TimeControl "180+2"]
[Date "2023.01.17"]
[WhiteClock "0:00:05"]
[BlackClock "0:00:32"]

1. d4 {[%clk 0:03:00]}  d6 {[%clk 0:02:59]} 2. Bf4 {[%clk 0:03:00]}  Nd7 {[%clk 0:02:59]} 3. e3 {[%clk 0:03:01]}  e5 {[%clk 0:02:59]} 4. Bg3 {[%clk 0:03:01]}  g6 {[%clk 0:02:58]} 5. c4 {[%clk 0:03:00]}  Bg7 {[%clk 0:02:58]} 6. Nc3 {[%clk 0:03:01]}  Ne7 {[%clk 0:02:57]} 7. Nf3 {[%clk 0:03:01]}  O-O {[%clk 0:02:54]} 8. h3 {[%clk 0:03:02]}  c6 {[%clk 0:02:54]} 9. Be2 {[%clk 0:03:02]}  h6 {[%clk 0:02:51]} 10. O-O {[%clk 0:03:01]}  Qc7 {[%clk 0:02:50]} 11. b4 {[%clk 0:03:02]}  f5 {[%clk 0:02:47]} 12. b5 {[%clk 0:02:59]}  f4 {[%clk 0:02:46]} 13. Bh2 {[%clk 0:02:54]}  fxe3 {[%clk 0:02:29]} 14. fxe3 {[%clk 0:02:54]}  Nf5 {[%clk 0:02:29]} 15. Qd3 {[%clk 0:02:34]}  Qb6 {[%clk 0:02:25]} 16. g4 {[%clk 0:02:11]}  exd4 {[%clk 0:02:19]} 17. Na4 {[%clk 0:02:01]}  Qa5 {[%clk 0:02:10]} 18. gxf5 {[%clk 0:02:00]}  Qxa4 {[%clk 0:02:09]} 19. Nxd4 {[%clk 0:01:53]}  Nc5 {[%clk 0:02:05]} 20. Qd2 {[%clk 0:01:32]}  Ne4 {[%clk 0:02:01]} 21. Qd3 {[%clk 0:01:28]}  gxf5 {[%clk 0:01:55]} 22. Bf3 {[%clk 0:01:18]}  c5 {[%clk 0:01:39]} 23. Bxe4 {[%clk 0:01:01]}  fxe4 {[%clk 0:01:38]} 24. Rxf8+ {[%clk 0:01:00]}  Bxf8 {[%clk 0:01:34]} 25. Qxe4 {[%clk 0:00:54]}  cxd4 {[%clk 0:01:26]} 26. Qg6+ {[%clk 0:00:53]}  Bg7 {[%clk 0:01:25]} 27. Qe8+ {[%clk 0:00:41]}  Bf8 {[%clk 0:01:18]} 28. Bxd6 {[%clk 0:00:30]}  Qxc4 {[%clk 0:00:42]} 29. Qxf8+ {[%clk 0:00:20]}  Kh7 {[%clk 0:00:42]} 30. Qe7+ {[%clk 0:00:18]}  Kg8 {[%clk 0:00:42]} 31. Qe8+ {[%clk 0:00:13]}  Kh7 {[%clk 0:00:35]} 32. Rf1 {[%clk 0:00:10]}  Qg8+ {[%clk 0:00:35]} 33. Qxg8+ {[%clk 0:00:06]}  Kxg8 {[%clk 0:00:35]} 34. Rf8+ {[%clk 0:00:05]}  Kg7 {[%clk 0:00:35]} 35. exd4 {[%clk 0:00:05]}  b6 {[%clk 0:00:32]} 0-1


[Site "https://www.chess.com"]